Cogmind - Beta 11.2 @@@ ROGUE MODE // 2023.02.28 @ 21:32:44 Player: Xplodonator Result: Self-destructed Performance ------------- Evolutions (1) 500 Regions Visited (3) 600 Robots Destroyed (48) 240 Value Destroyed (1089) 1089 Prototype IDs (1) 20 Alien Tech Used (0) 0 Bonus (0) 0 TOTAL SCORE: 2449 Bonus ------- None Cogmind --------- Core Integrity 157/400 Matter 293/300 Energy 160/160 System Corruption 0% Temperature Cool (0) Movement Treading (160) Location -9/Materials Parts ------- > --- POWER (1) -------- Light Nuclear Core > --- PROPULSION (2) --- Light Treads Light Treads > --- UTILITY (4) ------ Large Storage Unit Visual Processing Unit > --- WEAPON (2) ------- Light Assault Rifle > --- INVENTORY (15) --- Ion Engine Aluminum Leg Compact Wheel Small Storage Unit Medium Matter Pod (100) Signal Interpreter Signal Interpreter Utility Shielding Peak State ------------ > --- POWER ------------ Improved Ion Engine > --- PROPULSION ------- Light Treads Light Treads > --- UTILITY ---------- Large Storage Unit Visual Processing Unit > --- WEAPON ----------- Heavy Assault Rifle Improved Assault Rifle > --- INVENTORY -------- Ion Engine Light Treads Light Treads Aluminum Leg Compact Wheel Small Storage Unit Medium Matter Pod Signal Interpreter Signal Interpreter Utility Shielding Light Assault Rifle Light Assault Rifle [Rating: 13] Favorites ----------- Power Ion Engine Engine Ion Engine Power Core Light Nuclear Core Propulsion Light Treads Treads Light Treads Leg Aluminum Leg Wheel Compact Wheel Utility Large Storage Unit Storage Large Storage Unit Processor Visual Processing Unit Weapon Light Assault Rifle Energy Gun Medium Laser Ballistic Gun Light Assault Rifle Build | -11 -10 -10 -9 ------- Run | Scr Mat Min Mat Slots Evolved 2 | . . . 2 Power . | . . . . Propulsion . | . . . . Utility 2 | . . . 2 Weapon . | . . . . Parts Attached 27 | 6 9 . 12 Power 6 | 1 1 . 4 Engine 5 | 1 1 . 3 Core 1 | . . . 1 Reactor . | . . . . Propulsion 9 | 2 4 . 3 Treads 5 | . 2 . 3 Leg 2 | . 2 . . Wheel 2 | 2 . . . Hover . | . . . . Flight . | . . . . Utility 4 | 1 2 . 1 Device . | . . . . Storage 2 | 1 1 . . Processor 2 | . 1 . 1 Hackware . | . . . . Protection . | . . . . Artifact . | . . . . Weapon 8 | 2 2 . 4 Energy Gun 2 | 2 . . . Energy Cannon . | . . . . Ballistic Gun 6 | . 2 . 4 Ballistic Cannon . | . . . . Launcher . | . . . . Special Weapon . | . . . . Impact Weapon . | . . . . Slashing Weapon . | . . . . Piercing Weapon . | . . . . Special Melee Weapon . | . . . . Unidentified Prototypes 1 | . . . 1 Parts Lost 12 | . 2 1 9 Power 3 | . . . 3 Propulsion 4 | . 1 . 3 Utility 1 | . . 1 . Weapon 4 | . 1 . 3 Highest Loss Streak 3 | . 1 1 3 To Critical Strikes 1 | . . . 1 Average Slot Usage (%) 82 | . 88 88 72 Engine 12 | . 14 14 9 Treads 19 | . 13 28 20 Leg 2 | . 7 . . Wheel 2 | . 5 . . Storage 12 | . 14 14 11 Processor 7 | . 5 2 11 Energy Gun 5 | . 14 . . Ballistic Gun 18 | . 13 28 19 Naked Turns . | . . . . Heaviest Build 33 | 13 28 27 33 Greatest Support 40 | 26 40 40 40 Greatest Overweight (x) 1 | . 1 . 1 Average Overweight (x) . | . . . . Largest Inventory Capacity 15 | 8 15 15 15 Average Capacity 14 | 7 14 15 15 Most Carried 12 | 6 10 10 12 Average Carried 8 | 2 7 10 10 Final Capacity 15 | 8 15 15 15 Final Carried 10 | 6 10 10 8 Class Distribution -------------------- 63% | Mutant 36% | Scavenger-Mutant Dominant Class ---------------- Mutant | -10/Materials Mutant | -10/Mines Scavenger-Mutant | -9/Materials Resources | -11 -10 -10 -9 ----------- Run | Scr Mat Min Mat Matter Collected 884 | 204 181 127 372 Remotely . | . . . . Salvage Created 1553 | . 603 110 840 Parts 105 | . 31 15 59 Haulers Intercepted . | . . . . Recyclers Shooed 5 | . 2 . 3 Parts Field Recycled . | . . . . Retrieved Matter . | . . . . Parts Self-Destructed . | . . . . Prevented . | . . . . Kills | -11 -10 -10 -9 ------- Run | Scr Mat Min Mat Combat Hostiles Destroyed 40 | . 11 8 21 Guns 40 | . 11 8 21 Classes Destroyed 7 | . 5 . 2 Recycler 3 | . 2 . 1 Operator 1 | . 1 . . Watcher 4 | . 2 . 2 Swarmer 18 | . 3 8 7 Grunt 19 | . 8 . 11 Brawler 1 | . . . 1 Sentry 2 | . . . 2 Best Kill Streak 4 | . 4 3 4 Combat Bots Only 4 | . 4 3 3 Max Kills in Single Turn 2 | . 1 1 2 Gunslinging 1 | . . . 1 Exploded . | . . . . Melee . | . . . . Uniques/NPCs Destroyed . | . . . . Combat | -11 -10 -10 -9 -------- Run | Scr Mat Min Mat Damage Taken 1910 | . 460 241 1209 Core 325 | . 68 14 243 Absorbed by Shields . | . . . . Core Remaining (%) 83 | 100 . 67 . Volleys Fired 167 | . 65 16 86 Largest 2 | . 2 2 2 Hottest 90 | . 90 40 46 Shots Fired 302 | . 128 32 142 Gun 302 | . 128 32 142 Cannon . | . . . . Launcher . | . . . . Special . | . . . . Kinetic 214 | . 40 32 142 Thermal 88 | . 88 . . Explosive . | . . . . Electromagnetic . | . . . . Robot Hit Streak 15 | . 13 3 15 Robot Miss Streak 6 | . 4 3 6 Penetration Max . | . . . . Secondary Targets 5 | . 2 1 2 Max Gunslinging Chain 1 | . 1 1 1 Shots Hit Robots 192 | . 81 14 97 Core Hits 86 | . 33 10 43 Critical Kills . | . . . . Critical Parts Destroyed 3 | . . . 3 Critical Strikes 5 | . 2 . 3 Burn 2 | . 2 . . Destroy 3 | . . . 3 Melee Attacks . | . . . . Impact . | . . . . Slashing . | . . . . Piercing . | . . . . Sneak Attacks . | . . . . Combat Hostiles . | . . . . Follow-up Attacks . | . . . . Damage Inflicted 2010 | . 863 116 1031 Guns 2010 | . 863 116 1031 Cannons . | . . . . Explosions . | . . . . Melee . | . . . . Ramming . | . . . . Kinetic 1384 | . 237 116 1031 Thermal 626 | . 626 . . Explosive . | . . . . Electromagnetic . | . . . . Impact . | . . . . Slashing . | . . . . Piercing . | . . . . Highest Corruption . | . . . . Average Corruption . | . . . . Corruption Purged . | . . . . Corruption Blocked . | . . . . Overload Shots . | . . . . Overflow Damage . | . . . . Projectiles . | . . . . Explosions . | . . . . Melee . | . . . . Knockbacks . | . . . . Impact . | . . . . Kinetic . | . . . . Secondary . | . . . . Self-Inflicted Damage . | . . . . Shots . | . . . . Rammed . | . . . . Targets Rammed . | . . . . Kicked . | . . . . Crushed . | . . . . Highest Temperature 306 | . 306 . 22 Average Temperature 92 | . 107 . 6 Received Heat Transfer 738 | . 207 . 531 Siege Activations . | . . . . Robots Corrupted . | . . . . Combat Hostiles . | . . . . Parts Fried . | . . . . Impact Corruptions . | . . . . Robots Melted . | . . . . Combat Hostiles . | . . . . Parts Melted 6 | . 6 . . Heat Transferred 1762 | . 1762 . . Parts Sabotaged . | . . . . Parts Stolen . | . . . . Parts Stripped . | . . . . Power Chain Reactions . | . . . . Missiles Intercepted . | . . . . Alert | -11 -10 -10 -9 ------- Run | Scr Mat Min Mat Peak Influence 297 | . 197 188 297 Initial 18 | . . 18 . Average 104 | . 94 117 114 Maximum Alert Level 1 | . . . 1 Low Security (%) 95 | 100 100 100 89 Level 1 4 | . . . 10 Level 2 . | . . . . Level 3 . | . . . . Level 4 . | . . . . Level 5 . | . . . . High Security . | . . . . Max Security . | . . . . Squads Dispatched 3 | . 2 . 1 Investigation 1 | . . . 1 Extermination . | . . . . Reinforcement 2 | . 2 . . Assault . | . . . . Garrison . | . . . . Intercept . | . . . . Searches Triggered . | . . . . Construction Impeded . | . . . . Haulers Reinforced . | . . . . Active Scanning Responses . | . . . . Cargo Convoy Interrupts . | . . . . Stealth | -11 -10 -10 -9 --------- Run | Scr Mat Min Mat Distress Signals 3 | . 2 . 1 Communications Jammed . | . . . . Distress Signals . | . . . . Times Spotted 52 | . 17 8 27 Peak Tracking Total 5 | . 5 3 5 Tactical Retreats 2 | . . . 2 Traps | -11 -10 -10 -9 ------- Run | Scr Mat Min Mat Traps Triggered 1 | . . . 1 Indirectly . | . . . . Trap Hack Attempts . | . . . . Triggered . | . . . . Disarmed . | . . . . Reprogrammed . | . . . . Reused . | . . . . Traps Extracted . | . . . . Installed . | . . . . Triggered . | . . . . Machines | -11 -10 -10 -9 ---------- Run | Scr Mat Min Mat Machines Disabled . | . . . . Max in Single Turn . | . . . . Machines Sabotaged . | . . . . Garrisons Compromised . | . . . . Overloaded Fab Kills . | . . . . Hacking | -11 -10 -10 -9 --------- Run | Scr Mat Min Mat Machines Accessed 4 | . 2 . 2 Terminals 4 | . 2 . 2 Fabricators . | . . . . Repair Stations . | . . . . Recycling Units . | . . . . Scanalyzers . | . . . . Garrison Access . | . . . . Total Hacks 10 | . 3 . 7 Successful 4 | . 1 . 3 Failed 6 | . 2 . 4 Catastrophic 2 | . 1 . 1 Database Lockouts . | . . . . Manual 4 | . 2 . 2 Terminals 10 | . 3 . 7 Fabricators . | . . . . Repair Stations . | . . . . Recycling Units . | . . . . Scanalyzers . | . . . . Garrison Access . | . . . . Terminal Hacks 4 | . 1 . 3 Part Schematic 1 | . . . 1 Robot Analysis 1 | . 1 . . Alert Level 1 | . . . 1 Hauler Manifests 1 | . . . 1 Fabricator Hacks . | . . . . Repair Station Hacks . | . . . . Recycling Unit Hacks . | . . . . Scanalyzer . | . . . . Garrison Access Hacks . | . . . . Unauthorized Hacks . | . . . . Terminals . | . . . . Fabricators . | . . . . Repair Stations . | . . . . Recycling Units . | . . . . Scanalyzers . | . . . . Garrison Access . | . . . . Data Cores Recovered . | . . . . Used . | . . . . Hacking Detections 4 | . 2 . 2 Full Trace Events . | . . . . Feedback Events . | . . . . Feedback Blocked . | . . . . Robot Schematics Acquired . | . . . . Robots Built . | . . . . Authchips . | . . . . Time . | . . . . Total Robot Build Rating . | . . . . Part Schematics Acquired 1 | . . . 1 Parts Built . | . . . . Authchips . | . . . . Time . | . . . . Total Part Build Rating . | . . . . Parts Repaired . | . . . . Time . | . . . . Parts Recycled . | . . . . Recycled Matter . | . . . . Retrieved Matter . | . . . . Retrieved Components . | . . . . Parts Scanalyzed . | . . . . Part Schematics Acquired . | . . . . Parts Damaged . | . . . . Bothacking | -11 -10 -10 -9 ------------ Run | Scr Mat Min Mat Used RIF Installer . | . . . . Robots Hacked . | . . . . Non-combat . | . . . . Combat . | . . . . Robot Hacks Applied . | . . . . Relay Couplers Released . | . . . . Fabnet Peak Effective % . | . . . . Robots Rewired . | . . . . Allies Hacked . | . . . . Hacks Repelled . | . . . . Allies | -11 -10 -10 -9 -------- Run | Scr Mat Min Mat Total Allies . | . . . . Largest Group . | . . . . Highest-Rated Group . | . . . . Highest-Rated Ally . | . . . . Total Orders . | . . . . Ally Attacks . | . . . . Total Damage . | . . . . Kills . | . . . . Allies Corrupted . | . . . . Allies Melted . | . . . . Intel | -11 -10 -10 -9 ------- Run | Scr Mat Min Mat Robot Analysis Total 1 | . 1 . . Derelict Logs Recovered 2 | . . 2 . Drone Launches . | . . . . Drone Recoveries . | . . . . Exploration | -11 -10 -10 -9 ------------- Run | Scr Mat Min Mat Turns Passed 2311 | 57 911 426 917 Spaces Moved 1112 | 50 455 241 366 Core 7 | 7 . . . Treads 837 | . 230 241 366 Legs 82 | . 82 . . Wheels 186 | 43 143 . . Hover . | . . . . Flight . | . . . . Fastest Speed 50 | 50 90 160 160 Average Speed 153 | 83 147 160 167 Slowest Speed 240 | 90 190 160 240 Overloaded Moves . | . . . . Propulsion Burnouts . | . . . . Robots Hopped . | . . . . Cave-ins Triggered . | . . . . Exploration Rate (%) 38 | 4 73 46 29 Regions Visited 3 Branch Regions 1 Pre-discovered Areas . | . . . . Known Exits Taken . | . . . . Unknown Exits Taken 3 | 1 1 1 . Scrap Searched 1 | . . 1 . Spaces Dug . | . . . . Terrain Destroyed . | . . . . Melee . | . . . . Projectile . | . . . . AOE . | . . . . Terrain Rammed . | . . . . Walls Destroyed . | . . . . Machines Disabled . | . . . . Actions | -11 -10 -10 -9 --------- Run | Scr Mat Min Mat Total 1438 | 61 574 256 547 Wait 102 | . 31 . 71 Move 1109 | 49 454 240 366 Hop . | . . . . Pick Up 23 | 6 9 . 8 Fast Attach 10 | 6 2 . 2 Attach 10 | . 2 . 8 Detach 1 | . 1 . . Swap 7 | . 5 . 2 Drop 9 | . 5 . 4 Fire 167 | . 65 16 86 Melee . | . . . . Ram . | . . . . Kick . | . . . . Crush . | . . . . Escape Stasis . | . . . . Rewire . | . . . . Trap . | . . . . Miscellaneous . | . . . . Route ------- -11/Scrapyard -10/Materials (discovered 3 exits: *Mat x2 / [*Min]) -10/Mines -9/Materials (discovered 3 exits: [*Min x2] / [*Sto]) History --------- Turn | Location | Event 26 | -11/Scrapyard | Discovered new exit (range 16) 58 | -11/Scrapyard | Entered Materials 238 | -10/Materials | Discovered new exit (range 16) 320 | -10/Materials | Build established: Mutant 611 | -10/Materials | Discovered new exit (range 13) 850 | -10/Materials | Discovered new exit (range 12) 969 | -10/Materials | Entered Mines 971 | -10/Mines | Met a Derelict bent on vengeance 1011 | -10/Mines | Learned Materials emergency access door positions 1068 | -10/Mines | Discovered new exit (range 5) 1116 | -10/Mines | Learned Materials terminal intel 1395 | -10/Mines | Entered Materials 1395 | -9/Materials | Evolved 2 slots: Utility x2 1396 | -9/Materials | Discovered new exit (range 15) 1397 | -9/Materials | Loaded intel: 12 terminal locations 1543 | -9/Materials | Discovered new exit (range 17) 1777 | -9/Materials | Build established: Scavenger-Mutant 1952 | -9/Materials | Lost 3 parts (1p1n1w) 2176 | -9/Materials | Core integrity fell below 50% 2249 | -9/Materials | Discovered new exit (range 17) 2312 | -9/Materials | Self-destructed Last Messages --------------- 02180_ G-47 Trooper destroyed. 02181_ Acquired 1 matter. 02183_ K-01 Serf collects debris. 02198_ Acquired Lgt. Nuclear Core. 02249_ EXIT=FOUND 02263_ K-01 Serf cleans the Machine. 02281_ S-10 Pest destroyed. 02283_ K-01 Serf cleans the Machine. 02284_ K-01 Serf collects debris. 02287_ S-10 Pest destroyed. 02289_ K-01 Serf cleans the Machine. 02289_ Acquired 17 matter. 02290_ M-13 Machinist repairs A-02 Transporter. 02292_ K-01 Serf cleans the Machine. 02292_ K-01 Serf collects debris. 02292_ R-06 Scavenger collects Lgt. Assault Rifle. 02295_ K-01 Serf collects debris. 02295_ R-06 Scavenger collects Lgt. Assault Rifle. 02296_ K-01 Serf cleans the Machine. 02309_ Destroyed Com. Wheel. Map ----- +----------------------------------------------------+ | ????????# + !%+=""""" #?????????????????????? | | ????????# # =!#*""""" #?????????????????????? | | ????????# # *#% #?????????????????????? | | ????????# # ###############???????????????? | | ????????# # ######## #???????????????? | | ????????# # # #???????????????? | | ?????########+## #% #???????????????? | | ?????# ! # %+* #???????????????? | | ?????# # % #### # #???????????????? | | ?????# """ # #??# # #???????????????? | | ?????# """ + #??# ########???????????????? | | ?????# """ #+###+##### #??????????????????????? | | ?????# # % ## #??????????????????????? | | ?????######## ! ## #??????????????????????? | | ????????????# =%! ## #??????????????????????? | | ????????????#"""=!! ## #??????????????????????? | | ????????????#"""%= ## #??????????????????????? | | ????????????#"""= ## #??????????????????????? | | ????????????#"""= ## *=#??????????????????????? | | ????????????#"""== ##=%%#######+### "????????? | | ????????????# =* %!% ## ??????? | | ????????????####+###### ??????? | | ???????????????# #????# ??????? | | ?????????????###+###### #######+#######????????? | | ?????????????# ## ####???????????????????? | | ?????????????# # @"""#???????????????????? | | ?????????????# # a "#???????????????????? | | ?????????????# # !"#???????????????????? | | ??#######????# # < ""#???????????????????? | | ??# ###### # !"#???????????????????? | | ### # # m "#???????????????????? | | + # r """#???????????????????? | | ### # ## ####???????????????????? | | #?# #### # ## #??????????????????????? | | #####+###### # ## ??????????????????????? | | #/ ## ########## k ??????T???????????????? | | # ## #????????# ??????????????????????? | | # [ "T" ## ###??????# #??????????????????????? | | # """ ## +??????# ???????????????????????? | | ################??????+ ???????????????????????? | | #???????????????# ??????????????????""??"" | | ##### #???????????????? ??????????????????"T??"" | | ????# #???????????????? ??????????????????""??T" | | ????# ?????????????????????????????????????????"" | | ????####????????????????????????????????????????"" | | ?????????????????????????????????????????????????? | | ?????????????????????????????????????????????????? | | ?????????????????????????????????????????????????? | | ?????????????????????????????????????????????????? | | ????????????????????????????????????T????????????? | +----------------------------------------------------+ Best States ------------- Heat Dissipation 28 Energy Generation 14 Energy Capacity 265 Matter Stores 300 Matter Capacity 300 Sight Range 18 Terrain Scan Density 10 Evasion (%) 44 Targeting Accuracy 6 Recoil Reduction 2 Item Schematics ----------------- Sensor Array | -9/Materials | Hacked Robot Schematics ------------------ None Fabricated ------------ Nothing Alien Tech Used ----------------- None Achievements -------------- None Challenges ------------ None Game ------ Seed SignalProcessingAnalyzer Manual? 0 Play Time 00:26:04 Cumulative 11.9 hours Start 2023.02.28 @ 20:59:28 End 2023.02.28 @ 21:32:44 Sessions 1 Manual Loads 0 Difficulty Rogue Special Mode None Game No. 13 Rogue 13 Adventurer 0 Explorer 0 Win Type - Total 0 Types 0/0/0/0/0/0/0/0/0 Lore% 15 Gallery% 14 Achievement% 15 Wizard Run 0 Options --------- ASCII 0 Keyboard 0 Movement Mouse Keybinds 0 Fullscreen 2 Font 18/Smallcaps Map View 76x50 Tactical HUD 1 Map Filters NONE Filters NONE Steam 1 RUN: 1685ef1e-b291-4ebc-94f6-5f4b6633bdc5